bitfinex/quotes_SOLUSD_20250823
["timestamp","ask_amount","ask_price","bid_price","bid_amount"]
[1755916347771,51.83232784,196.57,196.52,0.69]
[1755916347973,43.22,196.57,196.52,0.69]
[1755916348171,42.5,196.57,196.5,0.03]
[1755916348371,42.5,196.57,196.5,0.72]
[1755916348372,9.33232784,196.56,196.5,0.72]
[1755916348601,42.5,196.57,196.5,0.72]
[1755916348797,0.72,196.56,196.5,0.03]
[1755916349202,0.72,196.55,196.5,0.03]
[1755916349369,43.02,196.54,196.5,0.03]
[1755916349683,0.72,196.53,196.5,0.03]
[1755916349865,43.24,196.52,196.5,0.03]
[1755916350070,43.96,196.52,196.5,0.03]
[1755916350471,43.24,196.52,196.5,0.03]
[1755916351467,0.72,196.58,196.51,0.69]
[1755916351777,0.72,196.58,196.5,0.03]
[1755916351778,44.38,196.57,196.5,0.03]
[1755916351982,0.72,196.56,196.5,0.03]
[1755916352692,26.0,196.53,196.39,0.69]
[1755916352897,26.0,196.53,196.42,9.33232784]
[1755916352898,0.72,196.52,196.42,9.33232784]
[1755916353095,26.0,196.53,196.43,0.69]
[1755916353096,45.72,196.51,196.43,0.69]
[1755916353278,45.94,196.5,196.43,0.69]
[1755916353465,45.94,196.5,196.44,0.69]
[1755916353869,45.94,196.5,196.42,14.42775558]
[1755916354175,45.94,196.5,196.43,0.69]
[1755916354572,45.94,196.5,196.43,0.83216157]
[1755916354985,0.72,196.56,196.43,0.83216157]
[1755916355316,0.72,196.61,196.52,9.33232784]
[1755916355597,50.25559401,196.65,196.42,26.0]
[1755916355598,0.72,196.63,196.53,0.69]
[1755916355903,46.62,196.62,196.53,26.69]
[1755916356199,46.62,196.62,196.31,25.49915821]
[1755916356200,9.33232784,196.56,196.48,0.28432314]
[1755916356366,46.64,196.55,196.46,0.69]
[1755916356571,46.64,196.55,196.48,0.69]
[1755916357395,46.64,196.55,196.49,9.33232784]
[1755916357892,10.05232784,196.54,196.46,0.69]
[1755916358095,0.72,196.53,196.44,0.69]
[1755916358295,0.72,196.53,196.48,9.33232784]
[1755916358495,47.36,196.55,196.48,10.02232784]
[1755916358683,47.36,196.55,196.49,9.33232784]
[1755916359369,47.36,196.55,196.48,0.69]
[1755916359681,9.33232784,196.53,196.46,9.33232784]
[1755916359873,0.72,196.53,196.46,0.69]
[1755916360073,46.64,196.55,196.42,39.59559401]
[1755916360275,0.72,196.55,196.48,9.33232784]
[1755916360490,47.04,196.54,196.5,9.33232784]
[1755916360687,47.04,196.54,196.47,0.69]
[1755916361039,10.05232784,196.56,196.47,0.69]
[1755916361192,0.06,196.64,196.52,9.33232784]
[1755916361369,0.72,196.62,196.54,9.33232784]
[1755916361575,0.06,196.55,196.53,13.59559401]
[1755916361806,0.06,196.55,196.54,0.69]
[1755916361991,0.06,196.55,196.51,13.59559401]
[1755916362197,0.06,196.55,196.5,0.69]
[1755916362377,0.72,196.54,196.5,9.33232784]
[1755916362583,0.72,196.53,196.48,9.33232784]
[1755916362895,47.1,196.52,196.49,0.69]
[1755916363089,47.1,196.52,196.51,9.33232784]
[1755916363292,47.1,196.52,196.47,0.69]
[1755916363491,47.1,196.52,196.48,9.33232784]
[1755916363999,0.72,196.51,196.45,0.03]
[1755916364391,47.1,196.52,196.47,9.33232784]
[1755916364704,47.82,196.52,196.47,9.33232784]
[1755916365087,0.72,196.51,196.45,13.62559401]
[1755916365285,0.72,196.51,196.45,0.03]
[1755916365514,10.05232784,196.51,196.45,0.03]
[1755916365722,0.72,196.53,196.46,9.33232784]
[1755916365922,47.2,196.52,196.47,9.33232784]
[1755916366112,0.72,196.51,196.45,0.03]
[1755916366596,0.72,196.51,196.45,14.68325829]
[1755916366801,0.72,196.51,196.45,0.03]
[1755916367524,0.72,196.51,196.46,14.65325829]
[1755916367703,0.72,196.5,196.45,0.03]
[1755916368217,0.72,196.49,196.45,0.03]
[1755916368407,0.72,196.49,196.44,13.68325829]
[1755916368602,0.72,196.48,196.39,13.59559401]
[1755916368807,14.65325829,196.47,196.38,13.59559401]
[1755916369002,0.72,196.46,196.38,13.59559401]
[1755916369310,47.6,196.45,196.4,14.65325829]
[1755916369513,47.6,196.45,196.4,15.34325829]
[1755916369714,48.32,196.45,196.41,14.65325829]
[1755916369918,48.32,196.45,196.42,0.69]
[1755916369919,47.58,196.45,196.42,0.69]
[1755916370233,47.58,196.45,196.4,0.97432314]
[1755916370537,47.58,196.45,196.44,14.65325829]
[1755916371007,47.58,196.45,196.42,0.69]
[1755916371199,47.58,196.45,196.43,0.69]
[1755916371524,47.58,196.45,196.4,0.69]
[1755916371736,47.58,196.45,196.44,14.65325829]
[1755916372311,48.32,196.45,196.44,0.69]
[1755916372506,48.32,196.45,196.42,0.69]
[1755916372707,48.32,196.45,196.4,0.28432314]
[1755916372903,48.32,196.45,196.44,14.65325829]
[1755916373312,48.32,196.45,196.39,0.69]
[1755916373522,0.72,196.44,196.41,14.65325829]
[1755916373726,0.72,196.44,196.37,13.59559401]
[1755916373727,48.32,196.45,196.37,14.28559401]
[1755916373905,48.32,196.45,196.44,14.65325829]
[1755916374427,48.46,196.45,196.44,14.65325829]
[1755916375014,48.46,196.45,196.42,0.69]
[1755916375216,48.46,196.45,196.41,0.28432314]
[1755916375409,48.46,196.45,196.44,14.65325829]
[1755916376120,48.42,196.49,196.44,0.69]
[1755916376433,0.72,196.48,196.41,0.28432314]
[1755916376721,49.14,196.49,196.46,14.65325829]
[1755916376936,49.14,196.49,196.47,14.65325829]
[1755916377110,0.78,196.55,196.47,0.69]
[1755916377306,48.44,196.51,196.44,14.59991715]
[1755916377505,49.13,196.51,196.44,0.28432314]
[1755916377708,49.13,196.51,196.48,14.65325829]
[1755916377925,0.69,196.5,196.44,0.28432314]
[1755916378130,0.69,196.5,196.48,14.65325829]
[1755916378638,0.69,196.5,196.49,14.65325829]
[1755916378931,48.44,196.51,196.49,14.65325829]
[1755916379228,0.69,196.5,196.37,0.72]
[1755916379537,0.69,196.5,196.44,0.03]
[1755916380121,0.69,196.5,196.44,14.68325829]
[1755916380431,0.69,196.5,196.44,0.03]
[1755916380807,0.69,196.5,196.45,14.65325829]
[1755916381130,48.48,196.49,196.44,14.68325829]
[1755916381330,0.69,196.48,196.45,14.65325829]
[1755916381538,0.06,196.53,196.47,14.65325829]
[1755916381539,0.75,196.53,196.47,14.65325829]
[1755916381825,0.75,196.53,196.44,0.03]
[1755916381826,48.58,196.52,196.44,0.03]
[1755916382017,0.69,196.51,196.47,14.65325829]
[1755916382219,48.58,196.52,196.44,0.03]
[1755916382220,79.57,196.5,196.44,0.03]
[1755916382422,79.57,196.5,196.46,14.65325829]
[1755916382720,78.88,196.5,196.48,14.65325829]
[1755916382925,48.7,196.49,196.48,14.65325829]
[1755916383227,48.7,196.49,196.47,14.65325829]
[1755916383432,0.69,196.48,196.44,0.03]
[1755916383605,0.69,196.48,196.45,14.65325829]
[1755916383804,0.69,196.47,196.44,14.68325829]
[1755916384099,0.69,196.46,196.44,0.03]
[1755916385200,0.69,196.45,196.44,0.03]
[1755916385938,49.39,196.49,196.44,0.03]
[1755916386310,0.69,196.48,196.44,0.03]
[1755916386612,0.06,196.53,196.46,14.65325829]
[1755916386824,49.19,196.52,196.46,14.65325829]
[1755916387132,0.69,196.51,196.45,14.65325829]
[1755916387308,0.69,196.51,196.46,14.65325829]
[1755916387513,0.06,196.53,196.49,14.65325829]
[1755916387706,48.5,196.52,196.49,14.65325829]
[1755916387910,48.5,196.52,196.46,0.72]
[1755916388340,0.06,196.53,196.51,9.33626438]
[1755916388548,0.06,196.53,196.52,9.33626438]
[1755916388860,0.06,196.53,196.48,0.72]
[1755916388861,48.46,196.52,196.49,9.33626438]
[1755916389008,0.69,196.51,196.44,0.03]
[1755916389208,0.69,196.51,196.46,9.33626438]
[1755916389433,0.06,196.53,196.46,0.72]
[1755916389624,48.5,196.5,196.48,9.33626438]
[1755916390440,0.69,196.49,196.44,9.36626438]
[1755916390640,0.69,196.48,196.44,0.03]
[1755916391142,0.69,196.47,196.44,0.03]
[1755916391342,0.69,196.47,196.44,9.36626438]
[1755916391518,0.69,196.47,196.44,0.03]
[1755916391723,0.69,196.46,196.44,0.03]
[1755916392326,0.69,196.48,196.44,9.36626438]
[1755916392528,0.69,196.48,196.44,0.03]
[1755916392829,49.11,196.47,196.44,0.03]
[1755916393033,49.11,196.46,196.44,0.03]
[1755916393234,48.42,196.46,196.44,0.03]
[1755916393619,49.11,196.46,196.44,0.03]
[1755916393839,48.42,196.46,196.44,0.03]
[1755916394047,0.69,196.51,196.44,0.03]
[1755916394235,0.69,196.49,196.46,9.34167274]
[1755916394445,48.4,196.5,196.46,9.34167274]
[1755916394749,0.69,196.49,196.44,0.03]
[1755916394956,0.69,196.49,196.46,9.34167274]
[1755916395139,48.4,196.5,196.44,0.03]
[1755916395348,0.69,196.48,196.44,9.37167274]
[1755916395839,48.4,196.5,196.46,9.34167274]
[1755916396033,0.69,196.49,196.46,9.34167274]
[1755916396349,0.69,196.49,196.44,0.03]
[1755916396753,48.34,196.48,196.44,0.75]
[1755916397062,48.34,196.48,196.46,9.34167274]
[1755916397268,49.03,196.48,196.45,9.34167274]
[1755916397432,48.34,196.48,196.44,0.03]
[1755916397633,48.34,196.48,196.46,9.34167274]
[1755916398039,48.34,196.48,196.44,0.03]
[1755916398040,0.69,196.47,196.44,0.03]
[1755916398245,48.34,196.48,196.45,9.34167274]
[1755916398466,0.06,196.5,196.47,9.34167274]
[1755916398634,48.28,196.49,196.44,0.03]
[1755916398835,48.28,196.49,196.48,9.34167274]
[1755916399348,48.97,196.49,196.46,9.34167274]
[1755916399556,0.69,196.48,196.46,9.34167274]
[1755916399736,48.28,196.49,196.46,9.34167274]
[1755916399936,48.97,196.49,196.46,9.34167274]
[1755916400157,48.97,196.49,196.44,0.03]
[1755916400361,0.69,196.48,196.44,0.03]
[1755916400858,48.89,196.47,196.44,0.03]
[1755916401084,48.18,196.46,196.44,0.03]
[1755916401438,48.87,196.46,196.44,0.03]
[1755916401758,48.18,196.46,196.44,9.37167274]
[1755916402062,48.18,196.46,196.44,0.03]
[1755916402227,0.69,196.49,196.45,9.34167274]
[1755916402445,48.18,196.48,196.45,9.34167274]
[1755916402681,48.34,196.47,196.44,0.03]
[1755916402950,48.34,196.47,196.44,9.37167274]
[1755916402951,49.03,196.47,196.44,9.37167274]
[1755916403257,0.69,196.46,196.44,0.03]
[1755916403667,0.69,196.45,196.44,0.03]
[1755916403948,48.34,196.47,196.44,0.03]
[1755916404359,0.69,196.46,196.44,0.03]
[1755916404767,0.69,196.45,196.44,0.03]
[1755916405182,48.97,196.45,196.44,0.03]
[1755916406461,55.97876945,196.45,196.44,0.03]
[1755916410753,0.69,196.45,196.44,0.03]
[1755916410954,55.65876945,196.45,196.32,0.65]
[1755916411182,7.00876945,196.41,196.31,0.65]
[1755916411354,48.64,196.4,196.36,7.00876945]
[1755916411560,48.64,196.39,196.36,7.00876945]
[1755916411767,26.0,196.46,196.38,7.00876945]
[1755916412075,0.7,196.42,196.38,7.00876945]
[1755916412380,0.7,196.41,196.38,7.00876945]
[1755916412582,0.7,196.43,196.38,7.00876945]
[1755916412880,0.7,196.46,196.39,0.65]
[1755916413085,47.88,196.45,196.4,7.00876945]
[1755916413278,0.7,196.44,196.36,0.65]
[1755916413601,0.7,196.44,196.32,13.59559401]
[1755916413787,0.7,196.44,196.39,7.00876945]
[1755916413985,7.70876945,196.44,196.37,7.00876945]
[1755916414185,0.7,196.43,196.29,13.59559401]
[1755916414488,78.88,196.42,196.37,7.00876945]
[1755916414780,79.58,196.41,196.37,7.00876945]
[1755916414990,47.84,196.4,196.29,13.59559401]
[1755916415155,48.54,196.4,196.37,0.03]
[1755916415359,0.7,196.39,196.37,7.03876945]
[1755916415559,47.84,196.4,196.38,7.00876945]
[1755916415865,48.54,196.4,196.38,7.00876945]
[1755916416482,0.7,196.39,196.37,0.03]
[1755916416674,47.76,196.38,196.37,0.03]
[1755916416877,47.76,196.38,196.37,7.03876945]
[1755916417265,0.7,196.42,196.37,7.03876945]
[1755916417472,47.76,196.41,196.37,0.03]
[1755916417766,0.7,196.42,196.4,7.00876945]
[1755916417978,47.74,196.41,196.37,0.03]
[1755916418183,47.74,196.41,196.39,7.00876945]
[1755916418764,47.74,196.41,196.37,0.03]
[1755916418980,0.7,196.4,196.38,7.00876945]
[1755916419206,0.7,196.4,196.37,0.03]
[1755916419362,0.7,196.4,196.38,7.00876945]
[1755916420266,0.7,196.39,196.37,0.03]
[1755916420468,0.7,196.39,196.37,7.03876945]
[1755916421076,47.74,196.41,196.37,7.03876945]
[1755916421277,0.7,196.38,196.37,0.03]
[1755916421596,0.7,196.38,196.37,7.03876945]
[1755916422390,0.7,196.38,196.37,0.03]
[1755916424879,48.22,196.38,196.37,0.03]
[1755916426597,0.7,196.38,196.37,0.03]
[1755916426963,48.12,196.38,196.37,0.03]
[1755916429775,0.7,196.38,196.37,0.03]
[1755916429992,48.1,196.38,196.37,0.03]
[1755916432194,47.22,196.38,196.37,7.03876945]
[1755916432364,0.7,196.44,196.37,7.03876945]
[1755916432565,0.7,196.44,196.4,7.00876945]
[1755916432872,126.04,196.43,196.38,0.16]
[1755916433194,126.04,196.43,196.37,0.03]
[1755916433195,47.18,196.42,196.39,0.16]
[1755916433370,47.18,196.42,196.41,7.00876945]
[1755916433566,47.16,196.42,196.41,7.00876945]
[1755916433764,47.16,196.42,196.37,0.03]
[1755916434071,0.7,196.41,196.39,7.00876945]
[1755916434402,79.58,196.4,196.38,7.00876945]
[1755916434577,78.88,196.4,196.37,0.03]
[1755916434895,78.88,196.4,196.39,7.00876945]
[1755916435096,78.88,196.4,196.3,13.62559401]
[1755916435097,25.26,196.39,196.2,1.0]
[1755916435312,25.26,196.39,196.3,7.00876945]
[1755916435313,47.9,196.38,196.3,7.00876945]
[1755916435465,47.94,196.37,196.3,7.00876945]
[1755916435665,47.22,196.36,196.3,7.00876945]
[1755916436008,0.7,196.37,196.31,7.00876945]
[1755916436172,0.7,196.37,196.28,0.22]
[1755916436173,47.2,196.36,196.35,7.00876945]
[1755916436684,47.2,196.36,196.3,0.22]
[1755916436879,0.7,196.4,196.3,0.22]
[1755916436880,47.2,196.35,196.3,0.22]
[1755916437076,0.7,196.4,196.34,7.00876945]
[1755916437290,47.22,196.39,196.36,7.00876945]
[1755916437488,47.22,196.39,196.31,0.22]
[1755916437695,47.9,196.39,196.36,7.00876945]
[1755916437994,0.68,196.38,196.31,0.22]
[1755916438195,0.68,196.38,196.35,7.00876945]
[1755916438378,0.68,196.4,196.29,0.36216157]
[1755916438576,47.14,196.39,196.35,7.00876945]
[1755916438776,0.68,196.38,196.35,7.00876945]
[1755916438997,0.68,196.38,196.36,7.00876945]
[1755916439574,0.68,196.38,196.29,14.09991715]
[1755916439978,0.68,196.38,196.32,7.00876945]
[1755916440199,47.14,196.39,196.34,7.00876945]
[1755916440388,47.14,196.39,196.3,13.81559401]
[1755916440589,47.82,196.39,196.35,7.00876945]
[1755916440789,47.76,196.38,196.3,0.22]
[1755916440987,125.96,196.37,196.28,0.03]
[1755916441206,126.64,196.37,196.3,7.00876945]
[1755916441406,7.00876945,196.35,196.28,0.03]
[1755916441616,213.96,196.36,196.28,0.03]
[1755916441814,0.68,196.35,196.31,7.00876945]
[1755916441976,47.02,196.34,196.31,7.00876945]
[1755916442183,47.7,196.34,196.32,7.00876945]
[1755916442512,47.7,196.34,196.28,0.03]
[1755916442686,47.7,196.34,196.31,7.00876945]
[1755916443096,47.7,196.34,196.3,7.00876945]
[1755916443679,79.56,196.33,196.28,0.03]
[1755916443995,7.00876945,196.32,196.28,0.03]
[1755916444198,7.00876945,196.3,196.28,0.03]
[1755916444378,53.88876945,196.29,196.28,0.03]
[1755916444576,54.58876945,196.29,196.28,0.03]
[1755916444782,0.68,196.29,196.28,0.03]
[1755916444981,46.88,196.29,196.28,0.03]
[1755916445790,47.56,196.29,196.28,0.03]
[1755916446513,46.88,196.29,196.28,7.03876945]
[1755916446822,46.88,196.29,196.28,0.03]
[1755916447195,46.88,196.29,196.28,7.03876945]
[1755916447913,0.68,196.34,196.28,7.03876945]
[1755916448088,46.82,196.33,196.28,7.03876945]
[1755916448296,47.5,196.33,196.28,7.03876945]
[1755916448487,0.68,196.32,196.28,0.03]
[1755916448693,7.68876945,196.32,196.28,0.03]
[1755916448900,0.68,196.31,196.28,0.03]
[1755916449101,7.68876945,196.31,196.28,0.03]
[1755916449404,0.68,196.3,196.28,0.03]
[1755916449714,46.8,196.29,196.28,0.03]
[1755916449891,47.48,196.29,196.28,0.03]
[1755916450687,54.48876945,196.29,196.28,0.03]
[1755916450883,47.48,196.29,196.28,0.03]
[1755916451083,47.48,196.29,196.2,1.14216157]
[1755916451084,47.48,196.29,196.2,1.0]
[1755916451312,7.00876945,196.25,196.2,1.0]
[1755916451504,46.72,196.24,196.2,1.0]
[1755916452197,47.4,196.24,196.2,1.0]
[1755916452606,47.4,196.24,196.17,0.25]
[1755916452817,7.00876945,196.23,196.16,7.00876945]
[1755916453205,47.4,196.24,196.17,7.00876945]
[1755916453206,54.40876945,196.24,196.17,7.00876945]
[1755916453515,54.40876945,196.24,196.15,0.25]
[1755916453516,54.40876945,196.24,196.18,7.00876945]
[1755916453997,54.40876945,196.24,196.17,7.00876945]
[1755916454197,46.72,196.24,196.16,0.25]
[1755916454430,7.00876945,196.23,196.16,0.25]
[1755916455101,0.68,196.22,196.16,7.00876945]
[1755916455301,7.68876945,196.22,196.15,0.28432314]
[1755916455504,7.68876945,196.22,196.16,7.00876945]
[1755916456104,0.68,196.22,196.16,7.00876945]
[1755916456502,7.00876945,196.23,196.17,7.00876945]
[1755916456923,47.4,196.24,196.18,7.00876945]
[1755916457794,54.40876945,196.24,196.18,7.00876945]
[1755916458198,54.40876945,196.24,196.16,0.25]
[1755916458417,7.00876945,196.23,196.16,0.25]
[1755916458638,47.4,196.24,196.17,7.00876945]
[1755916458934,7.00876945,196.23,196.17,7.00876945]
[1755916459116,47.4,196.24,196.18,7.00876945]
[1755916459316,54.40876945,196.24,196.18,7.00876945]
[1755916459500,7.68876945,196.23,196.15,0.28432314]
[1755916459701,7.68876945,196.23,196.16,7.00876945]
[1755916459901,7.68876945,196.23,196.15,0.28432314]
[1755916460238,78.88,196.22,196.17,7.00876945]
[1755916460410,7.00876945,196.23,196.15,0.28432314]
[1755916460614,7.00876945,196.23,196.15,0.53432314]
[1755916460813,0.68,196.22,196.16,7.00876945]
[1755916461006,0.68,196.22,196.15,0.53432314]
[1755916461211,0.68,196.22,196.16,7.00876945]
[1755916461412,7.00876945,196.21,196.15,0.28432314]
[1755916461617,7.00876945,196.21,196.15,7.29309259]
[1755916461908,7.00876945,196.21,196.15,0.28432314]
[1755916462314,7.68876945,196.22,196.16,7.00876945]
[1755916463416,7.00876945,196.21,196.15,0.28432314]
[1755916463625,7.00876945,196.21,196.15,7.29309259]
[1755916464146,0.68,196.22,196.17,7.00876945]
[1755916464312,7.68876945,196.22,196.16,7.00876945]
[1755916465136,7.00876945,196.22,196.16,7.00876945]
[1755916465327,0.68,196.21,196.15,0.28432314]
[1755916465643,7.68876945,196.21,196.15,7.29309259]
[1755916466011,7.68876945,196.21,196.15,0.28432314]
[1755916466209,78.88,196.2,196.15,7.32309259]
[1755916466433,79.56,196.2,196.15,0.31432314]
[1755916466735,79.56,196.2,196.15,7.32309259]
[1755916467504,79.56,196.2,196.15,0.31432314]
[1755916467710,79.56,196.2,196.15,7.32309259]
[1755916468126,46.81,196.19,196.15,0.31432314]
[1755916468934,46.81,196.19,196.15,0.03]
[1755916469141,46.1,196.19,196.15,0.56432314]
[1755916469547,46.1,196.19,196.15,0.31432314]
[1755916470054,46.81,196.19,196.15,7.32309259]
[1755916470215,46.81,196.19,196.15,0.31432314]
[1755916470608,46.81,196.19,196.15,7.32309259]
[1755916472225,0.71,196.18,196.15,0.31432314]
[1755916472550,0.71,196.17,196.15,0.31432314]
[1755916472717,46.81,196.19,196.15,0.31432314]
[1755916473226,46.1,196.19,196.15,0.31432314]
[1755916473436,0.71,196.18,196.15,0.31432314]
[1755916473647,0.71,196.18,196.15,7.32309259]
[1755916474432,0.71,196.18,196.15,0.31432314]
[1755916475006,0.71,196.18,196.15,0.03]
[1755916475315,0.71,196.17,196.15,0.03]
[1755916475511,7.71876945,196.17,196.15,0.03]
[1755916475711,0.71,196.16,196.15,0.03]
[1755916477457,7.71876945,196.16,196.08,13.87991715]
[1755916477665,7.71876945,196.16,196.0,234.1]
[1755916477666,7.00876945,196.12,196.04,0.28]
[1755916477845,53.08876945,196.11,196.05,7.00876945]
[1755916478156,53.08876945,196.11,196.04,0.28]
[1755916478347,53.08876945,196.11,196.05,13.59559401]
[1755916478348,46.08,196.11,196.05,13.59559401]
[1755916478538,46.79,196.11,196.05,13.59559401]
[1755916478858,46.79,196.11,196.06,7.00876945]
[1755916479078,0.71,196.1,196.06,7.00876945]
[1755916479233,46.08,196.11,196.02,0.28]
[1755916479565,7.00876945,196.08,196.0,20.0]
[1755916479752,125.71,196.07,196.0,20.0]
[1755916480064,0.71,196.06,196.0,20.0]
[1755916480448,0.71,196.06,196.01,7.00876945]
[1755916480647,0.71,196.05,196.01,7.00876945]
[1755916480963,0.71,196.04,196.0,20.0]
[1755916481262,46.83,196.03,196.0,20.0]
[1755916481471,46.1,196.02,196.0,20.0]
[1755916482133,46.1,196.02,196.01,0.14216157]
[1755916482751,46.1,196.02,196.01,0.28432314]
[1755916483371,46.81,196.02,196.01,0.28432314]
[1755916485666,46.81,196.02,196.0,20.0]
[1755916485667,46.81,196.02,196.0,27.00876945]
[1755916485867,46.1,196.02,196.0,20.0]
[1755916486567,0.71,196.01,196.0,20.0]
[1755916487165,46.97,196.01,196.0,20.0]
[1755916487344,0.71,196.01,196.0,20.0]
[1755916487545,46.95,196.01,196.0,20.0]
[1755916489673,46.16,196.01,196.0,20.0]
[1755916489962,46.16,196.01,196.0,20.28432314]
[1755916490161,46.16,196.01,196.0,27.29309259]
[1755916490465,46.16,196.01,196.0,20.28432314]
[1755916490964,46.87,196.01,196.0,20.28432314]
[1755916491353,46.16,196.01,196.0,27.29309259]
[1755916491746,0.71,196.01,196.0,20.0]
[1755916491945,46.18,196.01,196.0,20.0]
[1755916492478,46.89,196.01,196.0,20.0]
[1755916496174,53.89876945,196.01,196.0,19.28]
[1755916496678,7.71876945,196.01,196.0,19.28]
[1755916496864,53.81876945,196.01,196.0,19.28]
[1755916497269,15.322148,196.02,195.98,0.03]
[1755916497479,7.00876945,195.99,195.98,0.03]
[1755916497680,0.62,196.0,195.98,0.03]
[1755916497988,7.62876945,195.99,195.98,0.03]
[1755916498569,53.80876945,195.99,195.98,0.03]
[1755916499156,46.8,195.99,195.98,0.03]
[1755916499358,53.80876945,195.99,195.98,0.03]
[1755916499987,47.04,195.99,195.98,0.03]
[1755916500293,79.0,196.0,195.98,0.03]
[1755916500488,46.44,195.99,195.98,0.03]
[1755916501178,46.46,195.99,195.98,0.03]
[1755916501369,15.322148,196.04,195.98,7.70876945]
[1755916501568,46.46,196.03,195.99,0.67]
[1755916501790,46.46,196.03,195.98,0.03]
[1755916501791,7.00876945,196.02,195.98,0.03]
[1755916502098,46.46,196.03,196.0,0.67]
[1755916502274,53.46876945,196.03,195.99,0.67]
[1755916502469,7.00876945,196.02,195.98,0.03]
[1755916502675,47.08,196.03,195.98,0.03]
[1755916502884,53.46876945,196.03,195.98,0.03]
[1755916503083,47.08,196.03,195.98,0.03]
[1755916503498,7.00876945,196.02,195.98,0.03]
[1755916503793,0.62,196.02,195.98,0.03]
[1755916503993,0.62,196.01,195.98,0.03]
[1755916504194,53.46876945,196.0,195.98,0.03]
[1755916505001,0.62,196.07,195.99,0.67]
[1755916505195,47.14,196.06,195.98,0.7]
[1755916505398,7.00876945,196.02,195.98,0.7]
[1755916505692,46.54,196.01,195.98,0.03]
[1755916505873,53.54876945,196.01,195.98,0.03]
[1755916506075,46.54,196.01,195.98,0.03]
[1755916506974,7.00876945,196.0,195.98,0.03]
[1755916507497,46.54,196.01,195.98,0.03]
[1755916507977,53.54876945,196.01,195.98,0.03]
[1755916508573,46.54,196.01,195.98,0.03]
[1755916508791,2.662848,196.06,195.99,7.67876945]
[1755916508992,46.66,196.05,195.99,0.67]
[1755916509297,46.66,196.05,196.01,7.00876945]
[1755916509500,46.66,196.05,196.01,7.67876945]
[1755916509676,46.66,196.05,196.01,0.67]
[1755916510097,0.62,196.04,195.98,7.03876945]
[1755916510286,53.66876945,196.05,195.98,7.03876945]
[1755916510678,0.62,196.04,195.98,0.03]
[1755916510995,0.62,196.04,195.98,7.03876945]
[1755916511181,7.00876945,196.02,195.98,0.03]
[1755916511385,46.7,196.01,195.98,0.03]
[1755916511977,15.323714,196.06,195.98,0.03]
[1755916512178,7.00876945,196.06,195.99,7.67876945]
[1755916512372,46.66,196.05,195.99,0.67]
[1755916512682,46.66,196.05,196.0,7.00876945]
[1755916512887,46.66,196.05,196.0,7.67876945]
[1755916513484,0.62,196.09,196.03,7.00876945]
[1755916513683,7.00876945,196.07,196.01,0.67]
[1755916513883,7.62876945,196.07,195.98,0.03]
[1755916514098,7.62876945,196.07,196.0,7.00876945]